bitfinex/quotes_BTCUSD_20240906
["timestamp","ask_amount","ask_price","bid_price","bid_amount"]
[1725645259109,0.185067,54035.0,54031.0,0.185075]
[1725645259344,0.185066,54035.0,54031.0,0.185077]
[1725645259572,0.185069,54034.0,54029.0,0.37017]
[1725645259802,0.185069,54034.0,54025.0,0.370197]
[1725645259803,0.185075,54032.0,54028.0,0.370178]
[1725645260027,0.185071,54034.0,54028.0,0.370178]
[1725645260253,0.59475536,54038.0,54028.0,0.370178]
[1725645260254,0.00081,54039.0,54036.0,0.1996]
[1725645260472,0.00081,54039.0,54036.0,0.384661]
[1725645260947,0.185862,54039.0,54036.0,0.384661]
[1725645261189,0.185862,54039.0,54036.0,0.1996]
[1725645261640,0.00081,54039.0,54036.0,1.137484]
[1725645262108,0.00081,54039.0,54036.0,0.767361]
[1725645262396,0.00081,54039.0,54036.0,1.137484]
[1725645263750,0.185056,54038.0,54036.0,0.5823]
[1725645263962,0.370127,54036.0,54031.0,0.185076]
[1725645264170,0.00081,54037.0,54036.0,0.185061]
[1725645264403,0.00081,54037.0,54036.0,0.555184]
[1725645265343,0.00081,54037.0,54035.0,0.185065]
[1725645265778,0.00081,54037.0,54036.0,0.185061]
[1725645266006,0.00081,54037.0,54036.0,0.555184]
[1725645266500,0.00081,54037.0,54036.0,0.964584]
[1725645266944,0.00081,54037.0,54036.0,1.88773]
[1725645267152,0.00081,54037.0,54036.0,1.927161]
[1725645267850,0.00081,54037.0,54036.0,1.517607]
[1725645268289,0.00081,54037.0,54036.0,1.55896023]
[1725645268502,0.00082,54049.0,54047.0,0.92512]
[1725645268793,0.00082,54049.0,54047.0,1.50882]
[1725645269258,0.00082,54049.0,54047.0,1.138772]
[1725645269681,0.00082,54049.0,54047.0,0.768724]
[1725645269896,0.00082,54049.0,54047.0,1.50882]
[1725645270151,0.00082,54049.0,54047.0,1.878868]
[1725645271005,0.00082,54049.0,54047.0,1.138772]
[1725645271513,0.00082,54049.0,54047.0,1.50882]
[1725645271971,0.00082,54049.0,54047.0,1.138772]
[1725645272182,0.00082,54049.0,54044.0,0.370067]
[1725645272620,0.00082,54049.0,54045.0,0.37006]
[1725645272847,0.00082,54049.0,54047.0,0.555072]
[1725645273320,0.00082,54049.0,54043.0,0.3852]
[1725645273321,0.369951,54062.0,54043.0,0.3852]
[1725645273545,0.185794,54059.0,54055.0,0.184994]
[1725645273755,0.369975,54058.0,54054.0,0.3852]
[1725645274017,0.184992,54057.0,54052.0,0.37001]
[1725645274245,0.00081,54059.0,54055.0,0.184996]
[1725645274481,0.00081,54059.0,54052.0,0.37001]
[1725645274482,0.184998,54055.0,54052.0,0.185005]
[1725645274714,0.369975,54058.0,54052.0,0.185005]
[1725645274715,0.184994,54056.0,54052.0,0.185005]
[1725645274948,0.184994,54056.0,54053.0,0.185002]
[1725645275217,0.184994,54056.0,54051.0,0.3777]
[1725645275218,0.00081,54059.0,54056.0,0.184992]
[1725645275467,0.00081,54059.0,54057.0,0.369978]
[1725645275732,0.00081,54059.0,54057.0,0.184988]
[1725645275981,0.00081,54059.0,54055.0,0.559891]
[1725645275982,0.00081,54059.0,54058.0,0.58708544]
[1725645276217,0.00081,54059.0,54058.0,0.99629287]
[1725645276512,0.00081,54059.0,54058.0,1.36626487]
[1725645276711,0.00081,54059.0,54058.0,1.36256543]
[1725645276930,0.00081,54059.0,54055.0,0.1899]
[1725645277149,0.00081,54059.0,54058.0,0.184986]
[1725645277377,0.00081,54059.0,54057.0,0.184988]
[1725645277616,0.00081,54059.0,54056.0,0.184991]
[1725645277927,0.185794,54059.0,54056.0,0.184992]
[1725645278154,0.00081,54059.0,54058.0,0.184986]
[1725645278383,0.00081,54059.0,54057.0,0.184989]
[1725645279057,0.00081,54059.0,54058.0,0.184986]
[1725645279281,0.00081,54059.0,54058.0,0.554958]
[1725645279505,0.00081,54059.0,54058.0,0.939058]
[1725645279990,0.00081,54059.0,54052.0,0.3841]
[1725645280212,0.00081,54059.0,54058.0,0.554958]
[1725645280897,0.184987,54058.0,54055.0,0.184996]
[1725645281120,0.00081,54059.0,54052.0,0.754111]
[1725645281573,0.184996,54056.0,54052.0,0.569105]
[1725645281847,0.185,54054.0,54050.0,0.185012]
[1725645282107,0.22464336,54051.0,54043.0,0.370074]
[1725645282342,0.185021,54048.0,54045.0,0.18503]
[1725645282562,0.185021,54048.0,54042.0,0.564882]
[1725645282563,0.185025,54047.0,54044.0,0.185032]
[1725645282797,0.22464336,54056.0,54042.0,0.1948]
[1725645283035,0.185014,54050.0,54046.0,0.370049]
[1725645283269,0.185014,54050.0,54047.0,0.185023]
[1725645283508,0.185011,54051.0,54047.0,0.185023]
[1725645283741,0.185014,54050.0,54047.0,0.185023]
[1725645283967,0.185004,54053.0,54049.0,0.185015]
[1725645284236,0.370004,54054.0,54049.0,0.185015]
[1725645284463,0.185007,54052.0,54049.0,0.185015]
[1725645284677,0.22464336,54056.0,54048.0,0.37004]
[1725645284885,0.22464336,54056.0,54050.0,0.370025]
[1725645285121,0.369975,54058.0,54051.0,0.377]
[1725645285360,0.369975,54058.0,54052.0,0.185006]
[1725645285361,0.184997,54055.0,54052.0,0.185006]
[1725645285585,0.00081,54059.0,54054.0,0.369994]
[1725645285796,0.00081,54059.0,54051.0,0.18501]
[1725645285797,0.185001,54054.0,54051.0,0.18501]
[1725645286033,0.184991,54057.0,54054.0,0.184997]
[1725645286271,0.370782,54059.0,54051.0,0.370014]
[1725645286498,0.184987,54058.0,54054.0,0.184998]
[1725645286737,0.00081,54059.0,54053.0,0.370006]
[1725645286948,0.00081,54059.0,54054.0,0.1812]
[1725645287163,0.00081,54059.0,54057.0,0.184988]
[1725645287380,0.00081,54059.0,54055.0,0.369992]
[1725645287381,0.185794,54059.0,54055.0,0.554987]
[1725645287602,0.185794,54059.0,54056.0,0.184992]
[1725645287821,0.00081,54059.0,54054.0,0.366199]
[1725645288048,0.185795,54059.0,54055.0,0.184995]
[1725645288509,0.184987,54058.0,54055.0,0.184995]
[1725645288738,0.00081,54059.0,54055.0,0.36999]
[1725645289221,0.00081,54059.0,54057.0,0.184987]
[1725645289507,0.39970261,54067.0,54059.0,0.553762]
[1725645289508,0.00082,54067.0,54059.0,0.553762]
[1725645289738,0.00082,54067.0,54059.0,0.184982]
[1725645289739,0.18497,54063.0,54059.0,0.184982]
[1725645289978,0.18497,54063.0,54058.0,0.765167]
[1725645290204,0.369931,54064.0,54060.0,0.184979]
[1725645290420,0.18497,54063.0,54059.0,0.184982]
[1725645290648,0.184975,54062.0,54058.0,0.184985]
[1725645290875,0.184975,54062.0,54059.0,0.184981]
[1725645291089,0.18497,54063.0,54059.0,0.184981]
[1725645291301,0.184976,54061.0,54058.0,0.184985]
[1725645291520,0.184973,54062.0,54059.0,0.184981]
[1725645291755,0.36994,54063.0,54060.0,0.184978]
[1725645291756,0.18497,54063.0,54060.0,0.184978]
[1725645291977,0.36992,54066.0,54060.0,0.184978]
[1725645292192,0.36992,54066.0,54059.0,0.184982]
[1725645292399,0.18497,54063.0,54059.0,0.184982]
[1725645292854,0.184966,54064.0,54060.0,0.184977]
[1725645293788,0.184966,54064.0,54061.0,0.184976]
[1725645294240,0.184966,54064.0,54059.0,0.369961]
[1725645294486,0.174966,54064.0,54061.0,0.184975]
[1725645295166,0.174966,54064.0,54060.0,0.184979]
[1725645295397,0.184963,54065.0,54061.0,0.184974]
[1725645295616,0.184966,54064.0,54059.0,0.369965]
[1725645295856,0.184966,54064.0,54060.0,0.184978]
[1725645296302,0.184966,54064.0,54061.0,0.184976]
[1725645296746,0.00082,54067.0,54066.0,0.184959]
[1725645297021,0.00082,54067.0,54062.0,0.369945]
[1725645297263,0.00082,54067.0,54065.0,0.184961]
[1725645297910,0.00082,54067.0,54066.0,0.184959]
[1725645298174,0.00082,54067.0,54064.0,0.184965]
[1725645298394,0.00082,54067.0,54066.0,0.184959]
[1725645299061,0.00082,54067.0,54064.0,0.36993]
[1725645299062,0.00082,54067.0,54065.0,0.184961]
[1725645299539,0.00082,54067.0,54066.0,0.184959]
[1725645299763,0.00082,54067.0,54063.0,0.369935]
[1725645300013,0.369936,54064.0,54054.0,0.416]
[1725645300251,0.16810098,54061.0,54051.0,0.97030836]
[1725645300495,0.369927,54065.0,54051.0,0.97030836]
[1725645300744,0.56872,54067.0,54060.0,0.184978]
[1725645300745,0.184967,54064.0,54060.0,0.184978]
[1725645300974,0.184967,54064.0,54051.0,0.416]
[1725645300975,0.00082,54067.0,54051.0,0.416]
[1725645301208,0.369941,54063.0,54058.0,0.184986]
[1725645301665,0.184968,54064.0,54060.0,0.184978]
[1725645301935,0.184968,54064.0,54060.0,0.184977]
[1725645302180,0.184962,54065.0,54061.0,0.184975]
[1725645302408,0.184962,54065.0,54062.0,0.184972]
[1725645302878,0.00082,54067.0,54064.0,0.184963]
[1725645303371,0.00082,54067.0,54061.0,0.369951]
[1725645303605,0.185777,54067.0,54063.0,0.184967]
[1725645303839,0.185777,54067.0,54062.0,0.369942]
[1725645303840,0.00082,54067.0,54062.0,0.369942]
[1725645304054,0.184954,54068.0,54059.0,0.3795]
[1725645304278,0.16810098,54073.0,54063.0,0.1859]
[1725645304279,0.18494,54072.0,54063.0,0.1859]
[1725645304491,0.369872,54073.0,54066.0,0.369914]
[1725645304492,0.184942,54071.0,54066.0,0.369914]
[1725645304801,0.01569386,54077.0,54063.0,0.1859]
[1725645305035,0.00082,54084.0,54063.0,0.1859]
[1725645305036,0.00082,54084.0,54080.0,0.184909]
[1725645305261,0.00082,54084.0,54076.0,0.1803]
[1725645305482,0.00082,54084.0,54082.0,0.184904]
[1725645305698,0.00082,54084.0,54082.0,0.184902]
[1725645305921,0.00082,54084.0,54083.0,0.1849]
[1725645306381,0.00082,54084.0,54080.0,0.369819]
[1725645306619,0.184902,54083.0,54079.0,0.184911]
[1725645306851,0.184902,54083.0,54078.0,0.369834]
[1725645306852,0.16810098,54083.0,54081.0,0.184906]
[1725645307076,0.16810098,54083.0,54080.0,0.184911]
[1725645307351,0.00082,54084.0,54073.0,0.3986]
[1725645307352,0.00082,54084.0,54082.0,0.184902]
[1725645307572,0.00082,54084.0,54079.0,0.369825]
[1725645307573,0.00082,54084.0,54083.0,0.1849]
[1725645308027,0.00082,54084.0,54083.0,0.924502]
[1725645308244,0.00082,54084.0,54083.0,0.554701]
[1725645308483,0.00082,54084.0,54083.0,2.81732764]
[1725645308756,0.00082,54084.0,54083.0,3.18712864]
[1725645309243,0.00082,54084.0,54083.0,3.37188103]
[1725645309469,0.00082,54084.0,54083.0,3.43204103]
[1725645309683,0.00082,54084.0,54083.0,3.43404103]
[1725645309894,0.00082,54084.0,54083.0,3.43204103]
[1725645311059,0.00082,54084.0,54083.0,3.18712864]
[1725645311307,0.00082,54084.0,54083.0,3.37188103]
[1725645311516,0.00082,54084.0,54083.0,3.43204103]
[1725645311734,0.00082,54084.0,54083.0,3.40488103]
[1725645311954,0.185643,54103.0,54083.0,3.40488103]
[1725645311955,0.00081,54103.0,54100.0,0.184841]
[1725645312188,0.00081,54103.0,54101.0,0.184838]
[1725645312714,0.00081,54103.0,54098.0,0.369698]
[1725645312942,0.00081,54103.0,54100.0,0.184842]
[1725645313157,0.00081,54103.0,54100.0,0.36968]
[1725645313382,0.00081,54103.0,54102.0,0.554508]
[1725645313599,0.00081,54103.0,54102.0,0.184836]
[1725645314486,0.00081,54103.0,54102.0,0.554508]
[1725645314961,0.00081,54103.0,54102.0,0.92418]
[1725645315385,0.00081,54103.0,54102.0,0.554508]
[1725645315607,0.00081,54103.0,54102.0,0.184836]
[1725645316332,0.00081,54103.0,54102.0,0.554508]
[1725645316777,0.00081,54103.0,54092.0,0.3783]
[1725645316778,0.18485,54098.0,54092.0,0.3783]
[1725645316995,0.369676,54102.0,54092.0,0.3783]
[1725645316996,0.184843,54100.0,54096.0,0.184855]
[1725645317250,0.369676,54102.0,54096.0,0.184853]
[1725645317463,0.184841,54101.0,54093.0,0.369731]
[1725645317683,0.184841,54101.0,54098.0,0.184849]
[1725645318591,0.185643,54103.0,54099.0,0.184843]
[1725645319548,0.00081,54103.0,54102.0,0.184836]
[1725645319787,0.00081,54103.0,54097.0,0.369703]
[1725645320037,0.00081,54103.0,54100.0,0.184841]
[1725645320328,0.369735,54093.0,54088.0,0.4697]
[1725645320547,0.369727,54094.0,54089.0,1.2753]
[1725645320771,0.16810098,54095.0,54087.0,1.2753]
[1725645320772,0.369754,54090.0,54087.0,1.2753]
[1725645320989,0.55465,54088.0,54087.0,1.2753]
[1725645321209,0.924417,54088.0,54087.0,1.2753]
[1725645321466,0.55465,54088.0,54087.0,1.2753]
[1725645321688,0.369754,54090.0,54087.0,1.2753]
[1725645321897,0.55465,54088.0,54087.0,1.2753]
[1725645322112,0.184883,54088.0,54087.0,1.2753]
[1725645322351,0.924417,54088.0,54087.0,1.2753]
[1725645322581,1.294184,54088.0,54087.0,1.2753]
[1725645323031,0.924417,54088.0,54087.0,1.2753]
[1725645323245,0.184883,54089.0,54087.0,1.2753]
[1725645323474,0.184883,54088.0,54087.0,1.2753]
[1725645323696,0.184881,54089.0,54087.0,1.2753]
[1725645324190,0.369719,54096.0,54089.0,0.369756]
[1725645324191,0.369713,54096.0,54089.0,0.369756]
[1725645324428,0.369713,54096.0,54087.0,0.5615]
[1725645324429,0.16810098,54105.0,54088.0,0.18475239]
[1725645324677,0.184853,54097.0,54092.0,0.184869]
[1725645324899,0.184853,54097.0,54093.0,0.184866]
[1725645325144,0.184853,54097.0,54087.0,0.5615]
[1725645325145,0.184855,54097.0,54087.0,0.5615]
[1725645325360,0.16810098,54101.0,54087.0,0.5615]
[1725645325361,0.369702,54098.0,54090.0,0.369752]
[1725645325581,0.370475,54103.0,54092.0,0.369737]
[1725645325582,0.00081,54103.0,54092.0,0.369737]
[1725645325799,0.369682,54101.0,54095.0,0.184859]
[1725645326244,0.184851,54098.0,54094.0,0.184863]
[1725645326485,0.184866,54093.0,54089.0,0.184879]
[1725645326716,0.184866,54093.0,54087.0,0.931273]
[1725645326717,0.184864,54094.0,54090.0,0.184876]
[1725645326941,0.184856,54096.0,54092.0,0.184868]
[1725645327176,0.369684,54101.0,54089.0,0.369756]
[1725645327399,0.184843,54100.0,54096.0,0.184855]
[1725645327621,0.369684,54101.0,54089.0,0.369756]
[1725645327622,0.369684,54101.0,54094.0,0.18486]
[1725645327874,0.184848,54099.0,54095.0,0.184859]
[1725645328132,0.18484,54101.0,54097.0,0.184852]
[1725645328353,0.00081,54103.0,54097.0,0.3986]
[1725645328567,0.00081,54103.0,54102.0,0.184836]
[1725645329511,0.00081,54103.0,54102.0,0.554508]
[1725645329981,0.00081,54103.0,54102.0,0.184836]
[1725645330191,0.00081,54103.0,54102.0,0.554508]
[1725645330897,0.00081,54110.0,54102.0,1.84005239]
[1725645331118,0.00081,54110.0,54109.0,0.92406]
[1725645331351,0.770732,54123.0,54109.0,0.92406]
[1725645331352,0.00013,54125.0,54114.0,0.51810098]
[1725645331603,0.00013,54125.0,54121.0,0.03716]
[1725645331832,0.00013,54125.0,54122.0,0.78385239]
[1725645332047,0.00013,54125.0,54124.0,0.554281]
[1725645332268,0.00013,54125.0,54124.0,0.36951239]
[1725645332491,0.00013,54125.0,54124.0,1.10855439]
[1725645332703,0.00013,54125.0,54124.0,0.73903339]
[1725645332918,0.00013,54125.0,54124.0,1.14571439]
[1725645333170,0.00013,54125.0,54124.0,1.16871439]
[1725645333382,0.00013,54125.0,54124.0,1.56131439]
[1725645333804,0.00013,54125.0,54124.0,1.60298889]
[1725645335412,0.00013,54125.0,54124.0,0.4332745]
[1725645335773,0.184887,54125.0,54124.0,0.0416745]
[1725645335978,0.00013,54125.0,54118.0,0.1949]
[1725645336215,0.00013,54125.0,54121.0,0.18477]
[1725645336432,0.00013,54125.0,54118.0,0.1949]
[1725645336433,0.00013,54125.0,54122.0,0.18475239]
[1725645336681,0.00013,54125.0,54120.0,0.03716]
[1725645336927,0.22351348,54137.0,54120.0,0.03716]
[1725645336928,0.22351348,54133.0,54120.0,0.184773]
[1725645337148,0.000814,54125.0,54119.0,0.369554]
[1725645337385,0.000814,54125.0,54118.0,0.1949]
[1725645337603,0.184767,54122.0,54118.0,0.37968]
[1725645337841,0.000814,54125.0,54118.0,0.1949]
[1725645338322,0.000814,54125.0,54113.0,0.03716]
[1725645338323,0.000814,54125.0,54114.0,0.1921]
[1725645338543,0.18478,54119.0,54115.0,0.67779]
[1725645338773,0.000814,54125.0,54118.0,0.18478]
[1725645339009,0.000814,54125.0,54115.0,0.67775239]
[1725645339010,0.184771,54121.0,54117.0,0.184784]
[1725645339253,0.369527,54124.0,54117.0,0.369569]
[1725645339484,0.369527,54124.0,54119.0,0.184776]
[1725645339705,0.369533,54123.0,54116.0,0.184787]
[1725645339917,0.000814,54125.0,54117.0,0.184783]
[1725645340153,0.184776,54120.0,54116.0,0.184788]
[1725645340369,0.184773,54121.0,54117.0,0.184783]
[1725645340621,0.184769,54122.0,54116.0,0.369571]
[1725645340877,0.000814,54125.0,54115.0,1.04732939]
[1725645340878,0.185572,54125.0,54117.0,0.18475239]
[1725645341090,0.000814,54125.0,54118.0,0.369561]
[1725645341347,0.184773,54121.0,54116.0,0.184787]
[1725645341568,0.000814,54125.0,54117.0,0.18475239]
[1725645341806,0.6079,54147.0,54129.0,0.1949]
[1725645342094,0.6079,54147.0,54134.0,0.36945]
[1725645342095,0.369388,54144.0,54134.0,0.36945]
[1725645342332,0.6079,54147.0,54134.0,0.36945]
[1725645342333,0.184701,54142.0,54134.0,0.369448]
[1725645342569,0.369399,54142.0,54134.0,0.184724]
[1725645342812,0.369399,54142.0,54131.0,0.369474]
[1725645342813,0.184694,54144.0,54133.0,0.00369384]
[1725645343046,0.184694,54144.0,54134.0,0.184726]
[1725645343047,0.369386,54144.0,54134.0,0.184726]
[1725645343280,0.184703,54141.0,54135.0,0.184723]
[1725645343722,0.184696,54143.0,54134.0,0.369449]
[1725645343945,0.369381,54145.0,54134.0,0.369449]
[1725645344166,0.369376,54146.0,54130.0,0.03716]
[1725645344386,0.3694,54142.0,54134.0,0.184725]
[1725645344630,0.6079,54147.0,54133.0,0.184728]
[1725645344846,0.554117,54141.0,54134.0,0.184725]
[1725645345058,0.369393,54143.0,54132.0,0.369461]
[1725645345303,0.6079,54147.0,54132.0,0.184731]
[1725645345304,0.369402,54142.0,54132.0,0.184731]
[1725645345521,0.184711,54139.0,54133.0,0.184729]
[1725645345745,0.184717,54137.0,54130.0,0.36948]
[1725645345965,0.184712,54139.0,54131.0,0.369473]
[1725645346192,0.184712,54139.0,54134.0,0.184725]
[1725645346415,0.184715,54138.0,54133.0,0.184728]
[1725645346648,0.184715,54138.0,54132.0,0.369466]
[1725645346649,0.184719,54137.0,54132.0,0.184731]
[1725645346872,0.184725,54135.0,54130.0,0.184739]
[1725645347154,0.369338,54151.0,54129.0,0.1949]
[1725645347155,0.01,54164.0,54134.0,0.97002184]
[1725645347371,0.55430836,54156.0,54152.0,0.1922]
[1725645347586,0.00081,54158.0,54153.0,0.369322]
[1725645347827,0.00081,54158.0,54157.0,0.184648]
[1725645348248,0.00081,54158.0,54157.0,1.34475407]
[1725645348511,0.00081,54158.0,54157.0,1.71405007]
[1725645348735,0.00081,54158.0,54157.0,0.933244]
[1725645348951,0.00081,54158.0,54157.0,0.563948]
[1725645349392,0.00081,54158.0,54157.0,1.3397]
[1725645349622,0.00081,54158.0,54157.0,1.71285607]
[1725645349883,0.00081,54158.0,54157.0,1.81285607]
[1725645350093,0.00081,54158.0,54157.0,0.97426407]
[1725645350309,0.00081,54158.0,54157.0,1.34356007]
[1725645351671,0.00081,54158.0,54157.0,0.60496807]
[1725645351914,0.00081,54158.0,54152.0,0.5471]
[1725645352130,0.00081,54158.0,54157.0,0.553944]
[1725645352394,0.00081,54158.0,54157.0,0.92324]
[1725645352626,0.00081,54158.0,54157.0,1.37136301]
[1725645354703,0.00081,54158.0,54157.0,0.92324]
[1725645354921,0.00081,54158.0,54157.0,0.553944]
[1725645355187,0.00081,54158.0,54157.0,0.92324]
[1725645355656,0.00081,54158.0,54157.0,1.95131561]
[1725645356396,0.00081,54158.0,54157.0,1.91415561]
[1725645356836,0.00081,54158.0,54157.0,1.95131561]
[1725645357072,0.00081,54158.0,54157.0,2.57495161]
[1725645357309,0.00081,54158.0,54157.0,2.59695161]
[1725645357551,0.00081,54158.0,54157.0,2.57495161]
[1725645357772,0.00081,54158.0,54157.0,2.61211161]
[1725645358227,0.00081,54158.0,54157.0,2.68611061]
[1725645359923,0.00081,54158.0,54157.0,2.20981561]
[1725645360171,0.00081,54158.0,54154.0,0.258664]
[1725645360388,0.00081,54158.0,54153.0,0.406479]
[1725645360604,0.00081,54158.0,54156.0,0.18465]
[1725645360822,0.00081,54158.0,54157.0,0.184648]
[1725645361048,0.00081,54158.0,54154.0,0.369316]
[1725645361314,0.00081,54158.0,54153.0,0.03716]
[1725645361315,0.00081,54158.0,54153.0,0.18466]
[1725645361536,0.00081,54158.0,54157.0,0.92324]
[1725645361759,0.00081,54158.0,54157.0,1.35516403]
[1725645362042,0.00081,54158.0,54157.0,2.11731242]
[1725645362282,0.00081,54158.0,54157.0,2.54376842]
[1725645362552,0.00081,54158.0,54157.0,2.56676842]
[1725645362765,0.00081,54158.0,54157.0,2.66676842]
[1725645362991,0.00081,54158.0,54157.0,2.27747242]
[1725645365057,0.00081,54158.0,54157.0,2.64876842]
[1725645365293,0.00081,54158.0,54157.0,2.64676842]
[1725645365980,0.00081,54158.0,54157.0,0.59546803]
[1725645366977,0.00081,54158.0,54157.0,0.96476403]
[1725645367238,0.00081,54158.0,54157.0,1.18667642]
[1725645367456,0.00081,54158.0,54157.0,1.57897242]
[1725645367758,0.00081,54158.0,54157.0,1.54181242]
[1725645367845,0.00081,54158.0,54157.0,2.81711242]
[1725645368085,0.00081,54158.0,54157.0,2.85427242]
[1725645368542,0.00081,54158.0,54157.0,2.24006403]
[1725645368984,0.00081,54158.0,54157.0,1.87076803]
[1725645369220,0.00081,54158.0,54157.0,1.90792803]
[1725645369442,0.00081,54158.0,54157.0,2.27722403]
[1725645369679,0.00081,54158.0,54157.0,2.46197642]
[1725645369921,0.00081,54158.0,54157.0,2.85427242]
[1725645370595,0.00081,54158.0,54157.0,2.27722403]
[1725645371265,0.00081,54158.0,54157.0,2.64652003]
[1725645371517,0.00081,54158.0,54157.0,2.27722403]
[1725645372167,0.00081,54158.0,54157.0,2.64652003]
[1725645372402,0.00081,54158.0,54157.0,3.16707242]
[1725645372888,0.00081,54158.0,54157.0,2.79777642]
[1725645373359,0.00081,54158.0,54157.0,3.16707242]
[1725645373608,0.00081,54158.0,54157.0,2.77477642]
[1725645373851,0.00081,54158.0,54157.0,2.59002403]
[1725645374401,0.00081,54158.0,54157.0,1.929244]
[1725645374668,0.00081,54158.0,54154.0,1.31246]
[1725645374669,0.553965,54155.0,54154.0,1.31246]
[1725645374902,0.923275,54155.0,54154.0,1.2753]
[1725645375411,0.923275,54155.0,54149.0,0.001626]
[1725645375412,0.554016,54150.0,54149.0,0.001626]
[1725645375878,0.184672,54150.0,54149.0,0.001626]
[1725645376116,0.554016,54150.0,54149.0,0.001626]
[1725645376817,1.292704,54150.0,54149.0,0.001626]
[1725645377041,0.554016,54150.0,54149.0,0.001626]
[1725645377775,1.10976,54150.0,54149.0,0.001626]
[1725645378041,1.32046,54150.0,54149.0,0.001626]
[1725645380095,1.689804,54150.0,54149.0,0.001626]
[1725645381775,2.059148,54150.0,54149.0,0.001626]
[1725645382027,1.689804,54150.0,54149.0,0.001626]
[1725645383964,0.184669,54151.0,54149.0,0.001626]
[1725645384215,0.3701,54158.0,54149.0,0.001626]
[1725645384216,0.184663,54153.0,54149.0,0.001626]
[1725645384450,0.184665,54152.0,54149.0,0.001626]
[1725645384692,0.554016,54150.0,54149.0,0.001626]
[1725645384935,0.184672,54150.0,54149.0,0.001626]
[1725645385171,0.554016,54150.0,54149.0,0.001626]
[1725645386115,0.92336,54150.0,54149.0,0.001626]
[1725645386340,0.66452299,54150.0,54149.0,0.001626]
[1725645386562,0.84919499,54150.0,54149.0,0.001626]
[1725645387082,1.06389499,54150.0,54149.0,0.001626]
[1725645387309,0.47985099,54150.0,54149.0,0.001626]
[1725645388222,0.84919499,54150.0,54149.0,0.001626]
[1725645389162,0.47985099,54150.0,54149.0,0.001626]
[1725645389924,0.84919499,54150.0,54149.0,0.001626]
[1725645391627,0.47985099,54150.0,54149.0,0.001626]
[1725645392094,0.2147,54155.0,54149.0,0.001626]
[1725645392347,0.369311,54155.0,54149.0,0.001626]
[1725645392584,0.369318,54154.0,54149.0,0.001626]
[1725645392830,0.184667,54152.0,54149.0,0.001626]
[1725645393122,0.184659,54154.0,54151.0,0.184666]
[1725645393361,0.22351348,54153.0,54149.0,0.001626]
[1725645393607,0.92336,54150.0,54149.0,0.001626]
[1725645393833,0.184672,54150.0,54149.0,0.001626]
[1725645394083,0.554016,54150.0,54149.0,0.001626]
[1725645394324,0.184672,54150.0,54149.0,0.001626]
[1725645394560,0.554016,54150.0,54149.0,0.001626]
[1725645395037,1.292704,54150.0,54149.0,0.001626]
[1725645395270,0.92336,54150.0,54149.0,0.001626]
[1725645395731,0.554016,54150.0,54149.0,0.001626]
[1725645395965,1.15206,54150.0,54149.0,0.001626]
[1725645396219,1.97085021,54150.0,54149.0,0.001626]
[1725645396445,1.60150621,54150.0,54149.0,0.001626]
[1725645396918,1.97085021,54150.0,54149.0,0.001626]
[1725645397174,1.60150621,54150.0,54149.0,0.001626]
[1725645397423,1.37280621,54150.0,54149.0,0.001626]
[1725645399515,1.74215021,54150.0,54149.0,0.001626]
[1725645399784,0.184672,54150.0,54149.0,0.001626]
[1725645400010,0.554016,54150.0,54149.0,0.001626]
[1725645400238,0.92336,54150.0,54149.0,0.001626]
[1725645400480,0.554016,54150.0,54149.0,0.001626]
[1725645400973,0.369307,54156.0,54149.0,0.001626]
[1725645400974,0.00081,54158.0,54150.0,0.2264]
[1725645401210,0.00081,54158.0,54154.0,0.184656]
[1725645401211,0.185456,54158.0,54154.0,0.184656]
[1725645401442,0.00081,54158.0,54155.0,0.369309]
[1725645401695,0.00081,54158.0,54157.0,0.184648]
[1725645402198,0.00081,54158.0,54157.0,1.14564]
[1725645403406,0.00081,54158.0,54157.0,2.30782381]
[1725645403650,0.00081,54158.0,54157.0,2.34498381]
[1725645404133,0.00081,54158.0,54157.0,2.57019834]
[1725645404822,0.00081,54158.0,54157.0,2.34498381]
[1725645405065,0.00081,54158.0,54157.0,1.97568781]
[1725645405794,0.00081,54158.0,54157.0,2.29890234]
[1725645406039,0.00081,54158.0,54157.0,2.66819834]
[1725645406283,0.00081,54158.0,54157.0,2.65519834]
[1725645406499,0.00081,54158.0,54157.0,2.66919834]
[1725645407226,0.00081,54158.0,54157.0,2.67119834]
[1725645407704,0.00081,54158.0,54157.0,2.45998381]
[1725645407924,0.00081,54158.0,54157.0,2.44598381]
[1725645408175,0.00081,54158.0,54157.0,3.19319834]
[1725645408423,0.00081,54158.0,54157.0,3.16719834]
[1725645408878,0.00081,54158.0,54157.0,3.19519834]
[1725645409112,0.00081,54158.0,54157.0,3.18119834]
[1725645409334,0.00081,54158.0,54157.0,3.16719834]
[1725645409554,0.11484362,54183.0,54166.0,0.738458]
[1725645409790,0.11484362,54183.0,54167.0,0.3735]
[1725645410029,0.11484362,54183.0,54178.0,0.184574]
[1725645410260,0.29940262,54183.0,54179.0,0.184572]
[1725645410943,0.11484362,54183.0,54176.0,0.36916]
[1725645411164,0.369153,54178.0,54167.0,0.2075]
[1725645411424,0.184585,54176.0,54167.0,0.2075]
[1725645411651,0.184585,54176.0,54172.0,0.184596]
[1725645411898,0.1804,54175.0,54169.0,0.369212]
[1725645412137,0.184581,54177.0,54173.0,0.18459]
[1725645412396,0.001,54178.0,54174.0,0.184589]
[1725645412885,0.369124,54183.0,54176.0,0.369167]
[1725645412888,0.1796,54185.0,54176.0,0.369167]
[1725645413121,0.184565,54182.0,54176.0,0.369167]
[1725645413355,0.184567,54181.0,54176.0,0.553747]